fUSD/lending_fUSD_20240101
["ID","MTS","AMOUNT","RATE_DAILY","PERIOD"]
[309778724,1704113441820,-500.0,0.00037808,2]
[309778725,1704113441829,-500.0,0.00037844,2]
[309778726,1704113441838,-500.0,0.00037844,2]
[309778727,1704113441847,-500.0,0.00037844,2]
[309778728,1704113441858,-500.0,0.00037844,2]
[309778729,1704113441868,-500.0,0.00037844,2]
[309778730,1704113441878,-500.0,0.00037844,2]
[309778731,1704113441887,-1275.46369851,0.00037889,2]
[309778732,1704113441896,-495.46,0.0003789,2]
[309778733,1704113441905,-495.46,0.0003789,2]
[309778734,1704113441914,-8371.54,0.0003789,2]
[309778735,1704113441923,-8371.54,0.0003789,2]
[309778736,1704113441933,-161.25,0.000379,7]
[309778737,1704113441942,-52237.2,0.000379,2]
[309778738,1704113441952,-22851.62601029,0.000379,2]
[309778739,1704113441964,-69852.96451303,0.000379,2]
[309778740,1704113441976,-47042.18279256,0.000379,2]
[309778741,1704113442104,-300.21781968,0.0002686,2]
[309778742,1704113442113,-11468.11136423,0.000379,2]
[309778743,1704113442125,-7683.57294495,0.000379,2]
[309778744,1704113442138,-308.16806821,0.000379,2]
[309778745,1704113442149,-7495.06171315,0.000379,2]
[309778746,1704113442161,-13890.76382836,0.000379,2]
[309778747,1704113442173,-815.03422,0.000379,2]
[309778748,1704113442184,-1484.39710929,0.000379,2]
[309778749,1704113442197,-5188.83969193,0.000379,2]
[309778750,1704113442206,-297.16,0.00037905,2]
[309778751,1704113442215,-298.03783878,0.00037973,9]
[309778752,1704113442225,-1435.01841625,0.00037973,9]
[309778753,1704113442234,-268.2340549,0.00037973,9]
[309778754,1704113442243,-268.09021284,0.00037973,9]
[309778755,1704113442253,-2000.0,0.00038,2]
[309778756,1704113442262,-999.75594326,0.00038,4]
[309778757,1704113442271,-951.85845623,0.00038,7]
[309778758,1704113442283,-48.14154377,0.00038,7]
[309778759,1704113442293,-1000.0,0.00038,3]
[309778760,1704113442302,-10003.1311389,0.00038,2]
[309778761,1704113442312,-320.8274296,0.0003805,10]
[309778762,1704113442322,-1289.06,0.0003808,5]
[309778763,1704113442331,-500.0,0.0003808,2]
[309778764,1704113442342,-1209.66,0.0003808,2]
[309778765,1704113442352,-500.0,0.0003808,2]
[309778766,1704113442362,-500.0,0.00038081,2]
[309778767,1704113442372,-500.0,0.00038081,2]
[309778768,1704113442382,-500.0,0.00038081,2]
[309778769,1704113442391,-500.0,0.00038081,2]
[309778770,1704113442401,-500.0,0.00038081,2]
[309778771,1704113442410,-500.0,0.00038082,2]
[309778772,1704113442420,-500.0,0.00038118,2]
[309778773,1704113442430,-570.08,0.00038118,2]
[309778774,1704113442440,-500.0,0.00038118,2]
[309778775,1704113442451,-500.0,0.00038118,2]
[309778776,1704113442460,-500.0,0.00038118,2]
[309778777,1704113442470,-500.0,0.00038118,2]
[309778778,1704113442480,-665.67196929,0.00038219,2]
[309778779,1704113442489,-1087.23939955,0.00038256,9]
[309778780,1704113442501,-631.15857409,0.00038256,9]
[309778781,1704113442513,-461.78127973,0.00038256,9]
[309778782,1704113442523,-415.38914265,0.00038256,10]
[309778783,1704113442538,-11682.53516414,0.00038256,10]
[309778784,1704113442547,-2603.06673309,0.00038256,11]
[309778785,1704113442556,-5664.66772854,0.00038256,7]
[309778786,1704113442566,-9447.92585503,0.00038256,10]
[309778787,1704113442575,-4360.26789728,0.00038256,7]
[309778788,1704113442585,-10175.8699513,0.00038256,10]
[309778789,1704113442594,-151.07,0.00038261,2]
[309778790,1704113442604,-529.36255693,0.00038266,8]
[309778791,1704113442613,-155.0,0.0003827,2]
[309778792,1704113442622,-1275.46369851,0.00038279,2]
[309778793,1704113442632,-461.50209882,0.00038316,10]
[309778794,1704113442642,-1289.06,0.00038354,5]
[309778795,1704113442651,-500.0,0.00038354,2]
[309778796,1704113442661,-1209.66,0.00038354,2]
[309778797,1704113442671,-500.0,0.00038354,2]
[309778798,1704113442680,-300.0,0.00038355,2]
[309778799,1704113442690,-300.0,0.00038355,2]
[309778800,1704113442699,-190.50606502,0.00038355,2]
[309778801,1704113442709,-500.0,0.00038355,2]
[309778802,1704113442719,-500.0,0.00038355,2]
[309778803,1704113442728,-218.80681808,0.00038355,2]
[309778804,1704113442737,-500.0,0.00038355,2]
[309778805,1704113442747,-500.0,0.00038356,2]
[309778806,1704113442756,-500.0,0.00038356,2]
[309778807,1704113442766,-500.0,0.00038356,2]
[309778808,1704113442775,-500.0,0.00038356,2]
[309778809,1704113442785,-500.0,0.00038356,2]
[309778810,1704113442794,-500.0,0.00038356,2]
[309778811,1704113442804,-500.0,0.00038356,2]
[309778812,1704113442813,-500.0,0.00038356,2]
[309778813,1704113442822,-494.34475778,0.00038356,2]
[309778814,1704113442832,-150.0,0.00038356,2]
[309778815,1704113442841,-150.0,0.00038356,2]
[309778816,1704113442851,-155.62624245,0.00038356,2]
[309778817,1704113442863,-500.0,0.00038392,2]
[309778818,1704113442872,-500.0,0.00038392,2]
[309778819,1704113442882,-500.0,0.00038392,2]
[309778820,1704113442891,-500.0,0.00038392,2]
[309778821,1704113442901,-500.0,0.00038392,2]
[309778822,1704113442910,-150.0,0.00038392,7]
[309778823,1704113442919,-8000.0,0.000384,2]
[309778824,1704113442928,-89529.31639135,0.00038519,2]
[309778825,1704113442943,-4511.04473685,0.00038519,2]
[309778826,1704113442952,-495.46,0.00038519,2]
[309778827,1704113442961,-55555.0,0.00038529,3]
[309778828,1704113442970,-159.44,0.00038561,2]
[309778829,1704113442979,-1289.06,0.00038628,5]
[309778830,1704113442989,-500.0,0.00038628,2]
[309778831,1704113442998,-1209.66,0.00038628,2]
[309778832,1704113443007,-500.0,0.00038628,2]
[309778833,1704113443016,-500.0,0.00038629,2]
[309778834,1704113443026,-500.0,0.00038629,2]
[309778835,1704113443035,-500.0,0.00038629,2]
[309778836,1704113443044,-500.0,0.0003863,2]
[309778837,1704113443054,-480.3,0.00038666,2]
[309778838,1704113443063,-248.09,0.00038666,2]
[309778839,1704113443072,-500.0,0.00038666,2]
[309778840,1704113443082,-500.0,0.00038666,2]
[309778841,1704113443091,-500.0,0.00038666,2]
[309778842,1704113443101,-552.0,0.0003868,2]
[309778843,1704113443110,-181.68,0.0003878,2]
[309778847,1704113443249,-665.67196929,0.00038845,2]
[309778848,1704113443275,-2603.06673305,0.0003886,12]
[309778849,1704113443285,-150.1,0.00038874,2]
[309778850,1704113443294,-297.16,0.00038884,2]
[309778851,1704113443304,-171.858329,0.000389,2]
[309778852,1704113443313,-1289.06,0.00038902,5]
[309778853,1704113443323,-500.0,0.00038902,2]
[309778854,1704113443332,-1209.66,0.00038902,2]
[309778855,1704113443342,-500.0,0.00038902,2]
[309778856,1704113443351,-500.0,0.00038903,2]
[309778857,1704113443361,-500.0,0.00038903,2]
[309778858,1704113443370,-500.0,0.00038903,2]
[309778859,1704113443379,-500.0,0.00038904,2]
[309778860,1704113443389,-500.0,0.0003894,2]
[309778861,1704113443398,-500.0,0.0003894,2]
[309778862,1704113443407,-500.0,0.0003894,2]
[309778863,1704113443416,-5741.11534275,0.0003897,2]
[309778864,1704113443427,-12000.0,0.00039,7]
[309778865,1704113443436,-972.36322886,0.00039,4]
[309778866,1704113443446,-500.0,0.00039,2]
[309778867,1704113443456,-500.0,0.00039,10]
[309778868,1704113443465,-500.0,0.00039,10]
[309778869,1704113443474,-500.0,0.00039,10]
[309778870,1704113443484,-500.0,0.00039,10]
[309778871,1704113443494,-407.14,0.00039,2]
[309778872,1704113443503,-363.44,0.00039172,2]
[309778873,1704113443512,-1289.06,0.00039176,5]
[309778874,1704113443522,-500.0,0.00039176,2]
[309778875,1704113443532,-1209.66,0.00039176,2]
[309778876,1704113443541,-500.0,0.00039176,2]
[309778877,1704113443551,-500.0,0.00039177,2]
[309778878,1704113443560,-500.0,0.00039177,2]
[309778879,1704113443570,-500.0,0.00039177,2]
[309778880,1704113443580,-500.0,0.00039178,2]
[309778881,1704113443589,-200.0,0.000392,2]
[309778882,1704113443598,-582.93689755,0.00039214,2]
[309778883,1704113443608,-367.35952348,0.00039214,2]
[309778884,1704113443618,-500.0,0.00039214,2]
[309778885,1704113443627,-155.9,0.0003926,2]
[309778886,1704113443636,-152.96914004,0.000393,2]
[309778887,1704113443646,-500.0,0.00039347,4]
[309778888,1704113443655,-529.36255693,0.00039371,9]
[309778889,1704113443665,-1289.06,0.0003945,5]
[309778890,1704113443674,-500.0,0.0003945,2]
[309778891,1704113443684,-1209.66,0.0003945,2]
[309778892,1704113443693,-500.0,0.0003945,2]
[309778893,1704113443703,-500.0,0.00039451,2]
[309778894,1704113443712,-500.0,0.00039451,2]
[309778895,1704113443722,-500.0,0.00039451,2]
[309778896,1704113443730,-500.0,0.00039452,2]
[309778897,1704113443740,-159.44,0.00039454,2]
[309778898,1704113443749,-2603.06673305,0.00039464,13]
[309778899,1704113443758,-665.67196929,0.0003947,2]
[309778900,1704113443767,-500.0,0.00039488,2]
[309778901,1704113443777,-1000.0,0.000395,2]
[309778902,1704113443786,-321.41,0.00039508,2]
[309778903,1704113443795,-181.73,0.0003952,2]
[309778904,1704113443804,-16086.99247589,0.00039573,2]
[309778905,1704113443813,-4886.00728927,0.00039573,2]
[309778906,1704113443822,-4573.02916342,0.00039573,2]
[309778907,1704113443839,-2199.59215,0.00039573,2]
[309778908,1704113443850,-618.99324043,0.00039573,2]
[309778909,1704113443864,-2249.51885234,0.00039573,2]
[309778910,1704113443874,-157.40802707,0.0003964,2]
[309778911,1704113443883,-3259.71033036,0.000397,2]
[309778912,1704113443894,-4740.28966964,0.000397,2]
[309778913,1704113443904,-1289.06,0.00039724,5]
[309778914,1704113443913,-500.0,0.00039724,2]
[309778915,1704113443923,-1209.66,0.00039724,2]
[309778916,1704113443933,-500.0,0.00039724,2]
[309778917,1704113443944,-500.0,0.00039725,2]
[309778918,1704113443953,-382.72,0.00039725,2]
[309778919,1704113443963,-500.0,0.00039725,2]
[309778920,1704113443972,-500.0,0.00039726,2]
[309778921,1704113443982,-390.52033036,0.00039762,2]
[309778922,1704113443993,-109.47966964,0.00039762,2]
[309778923,1704113444003,-297.16,0.00039862,2]
[309778924,1704113444012,-157.0,0.00039885,5]
[309778925,1704113444021,-529.18760336,0.000399,2]
[309778926,1704113444031,-529.18760318,0.000399,2]
[309778927,1704113444040,-244.97042187,0.000399,2]
[309778928,1704113444050,-155.54319353,0.00039968,2]
[309778929,1704113444059,-294.0,0.0003997,14]
[309778930,1704113444069,-495.46,0.0003998,2]
[309778931,1704113444079,-542.64795748,0.0003999,5]
[309778932,1704113444091,-42792.05581903,0.0003999,5]
[309778933,1704113444106,-797.95569169,0.0003999,5]
[309778934,1704113444119,-2203.29285323,0.0003999,5]
[309778935,1704113444130,-5364.02240599,0.0003999,5]
[309778936,1704113444142,-1820.37032312,0.0003999,5]
[309778937,1704113444154,-3910.75501926,0.0003999,5]
[309778938,1704113444167,-788.9199999,0.0003999,5]
[309778939,1704113444193,-463.51367634,0.00036435,4]
[309778940,1704113444208,-263.65882223,0.00036435,4]
[309778941,1704113444216,-976.45493166,0.0003999,5]
[309778942,1704113444248,-0.00280803,0.0003999,5]
[309778943,1704113444262,-893.4767687,0.0003999,5]
[309778944,1704113444278,-668.90836217,0.00038391,4]
[309778945,1704113444290,-604.8212046,0.00038391,4]
[309778946,1704113444302,-2672.34692856,0.00038391,4]
[309778947,1704113444311,-967.8086357,0.0003999,5]
[309778948,1704113444323,-5105.4177991,0.0003999,5]
[309778949,1704113444334,-12260.08155698,0.0003999,5]
[309778950,1704113444346,-8199.17507264,0.0003999,5]
[309778951,1704113444359,-7417.92348569,0.0003999,5]
[309778952,1704113444370,-4265.71949427,0.0003999,2]
[309778953,1704113444382,-3224.72403374,0.0003999,2]
[309778954,1704113444393,-406.58996431,0.0003999,2]
[309778955,1704113444404,-446.14741197,0.0003999,2]
[309778956,1704113444416,-2084.54139676,0.0003999,2]
[309778957,1704113444442,-504.57445119,0.0003999,2]
[309778958,1704113444458,-107.70324776,0.0003999,2]
[309778959,1704113444467,-1289.06,0.00039998,5]
[309778960,1704113444477,-500.0,0.00039998,2]
[309778961,1704113444488,-1209.66,0.00039998,2]
[309778962,1704113444497,-291.39883224,0.00039998,2]
[309778963,1704113444515,-208.60116776,0.00039998,2]
[309778964,1704113444524,-449.25555423,0.00039999,2]
[309778965,1704113444533,-500.0,0.00039999,2]
[309778966,1704113444542,-413.82323274,0.00039999,2]
[309778967,1704113444552,-315.1217229,0.00039999,2]
[309778968,1704113444562,-500.0,0.00039999,2]
[309778969,1704113444571,-500.0,0.00039999,2]
[309778970,1704113444581,-500.0,0.00039999,2]
[309778971,1704113444591,-2424.78926863,0.0004,2]
[309778972,1704113444600,-209.0684731,0.0004,2]
[309778973,1704113444609,-17128.12224065,0.0004,15]
[309778974,1704113444621,-5050.33223378,0.0004,15]
[309778975,1704113444633,-5444.75842812,0.0004,15]
[309778976,1704113444642,-759.65681004,0.0004,4]
[309778977,1704113444651,-1603.5116659,0.0004,4]
[309778978,1704113444660,-6270.33700476,0.0004,4]
[309778984,1704113446267,-580.68043148,0.00026861,2]
[309778985,1704113446323,-388.35687835,0.00026861,2]
[309778986,1704113446335,-88.95021396,0.00026861,2]
[309778987,1704113446345,-340.83662371,0.00038355,4]
[309778988,1704113446355,-93.33476063,0.00038391,2]
[309778989,1704113446367,-3086.70687199,0.00038391,2]
[309778990,1704113446377,-1355.09924123,0.0004,4]
[309778991,1704113446388,-13621.97362062,0.0004,4]
[309778992,1704113446400,-32842.69124745,0.0004,4]
[309778993,1704113446409,-2057.97679126,0.0004,4]
[309778994,1704113446419,-526.19154102,0.0004,4]
[309778995,1704113446455,-309.24805953,0.0004,4]
[309778996,1704113446496,-716.28058986,0.0004,4]
[309778997,1704113446508,-811.1947519,0.0004,4]
[309778998,1704113446517,-655.31030298,0.0004,2]
[309778999,1704113446527,-616.38683881,0.0004,4]
[309779000,1704113446538,-584.51044048,0.0004,4]
[309779001,1704113446548,-6146.36136577,0.0004,4]
[309779002,1704113446559,-3120.94606476,0.0004,4]
[309779003,1704113446571,-13898.39317815,0.0004,4]
[309779004,1704113446583,-2329.45350928,0.0004,4]
[309779005,1704113446595,-1067.53183187,0.0004,4]
[309779008,1704113494069,155.37939806,0.0003905,120]
[309779012,1704113631342,1679.53967142,0.00023,2]
[309779013,1704113631367,1679.53967142,0.00023,2]
[309779014,1704113631391,1679.53967142,0.00023,2]
[309779015,1704113631415,1679.53967142,0.00023,2]
[309779016,1704113631450,1023894.18159571,0.00023,2]
[309779017,1704113631476,74778.11670496,0.00023,2]
[309779023,1704113681873,1533.440799,0.0003905,30]
[309779024,1704113723837,679.53967142,0.00023,2]
[309779025,1704113723868,79.45012858,0.00023,2]
[309779026,1704113746235,505.9932,0.00023,2]
[309779027,1704113763830,94.09634284,0.00023,2]
[309779028,1704113763851,327.56465716,0.00023,2]
[309779029,1704113785825,219.685381,0.00023,2]
[309779030,1704113801836,219.685381,0.00023,2]
[309779031,1704113819837,219.685381,0.00023,2]
[309779032,1704113830007,447.10364439,0.0002223,2]
[309779033,1704113843848,219.685381,0.00023,2]
[309779034,1704113861832,219.685381,0.0002223,2]
[309779035,1704113867856,400.83881245,0.00021563,2]
[309779036,1704113868594,383.24855968,0.00022229,2]
[309779037,1704113869146,155.0,0.0002223,2]
[309779038,1704113872138,50423.69137191,0.0002223,2]
[309779039,1704113874851,2885.01063718,0.0002223,2]
[309779041,1704113879847,219.685381,0.0002223,2]
[309779042,1704113884852,5173.76742587,0.0002223,2]
[309779043,1704113892089,50444.10687496,0.0002223,2]
[309779044,1704113893811,18906.78871681,0.0002223,2]
[309779045,1704113894510,131973.95327286,0.0002223,2]
[309779046,1704113897852,219.685381,0.0002223,2]
[309779047,1704113899852,407.34711194,0.00021563,2]
[309779048,1704113905681,558.17129057,0.00022226,2]
[309779049,1704113910087,3596.18157446,0.0002223,2]
[309779050,1704113912634,81269.15803172,0.0002223,2]
[309779051,1704113913801,18897.99531087,0.0002223,2]
[309779054,1704113918233,219.685381,0.0002223,2]
[309779059,1704113937844,219.685381,0.0002223,2]
[309779063,1704113957147,219.685381,0.0002223,2]
[309779066,1704113977147,333.11219,0.0002223,2]
[309779067,1704113978520,5168.52018858,0.0002223,2]
[309779068,1704114014227,2292.9130396,0.00022119,2]
[309779070,1704114038713,168.64,0.00021753,2]
[309779073,1704114074802,3209.0,0.0003915,30]
[309779074,1704114080823,181.67,0.00026674,120]
[309779075,1704114189525,271.996336,0.0003915,30]
[309779077,1704114437365,13392.979236,0.00022978,2]
[309779078,1704114498109,150.0,0.0002209,2]
[309779079,1704114499414,150.0,0.00022638,2]
[309779085,1704114540078,-3180.04163262,0.00023012,2]
[309779086,1704114540098,-788.91942571,0.00023013,2]
[309779087,1704114540118,-2610.96544886,0.00023013,2]
[309779088,1704114540140,-17420.07349281,0.00023013,2]
[309779089,1704114553196,-2129.994798,0.00023011,2]
[309779090,1704114553218,-16706.72309889,0.00023011,2]
[309779091,1704114553239,-2606.86966809,0.00023011,2]
[309779092,1704114553260,-576.50989765,0.00023012,2]
[309779093,1704114553280,-369.84974276,0.00023012,2]
[309779094,1704114553301,-2311.37208248,0.00023012,2]
[309779095,1704114553322,-540.90072547,0.00023012,2]
[309779096,1704114553343,-525.94735941,0.00023012,2]
[309779097,1704114553364,-696.75265605,0.00023012,2]
[309779098,1704114553384,-619.96222449,0.00023012,2]
[309779099,1704114553405,-220.26666446,0.00023012,2]
[309779100,1704114553426,-393.68225135,0.00023012,2]
[309779101,1704114553446,-150.0,0.00023012,2]
[309779102,1704114553465,-150.0,0.00023013,2]
[309779103,1704114553486,-1528.19323301,0.00023013,2]
[309779104,1704114553507,-155.0,0.00023013,2]
[309779105,1704114553531,-5436.91313592,0.00023013,2]
[309779109,1704114555793,3180.04163262,0.0002209,2]
[309779111,1704114566887,323.40330703,0.00022782,2]
[309779112,1704114571206,592.95024626,0.00022091,2]
[309779113,1704114572272,-362.82049166,0.00023007,2]
[309779114,1704114572294,-155.0,0.00023008,2]
[309779115,1704114572312,-435.31393712,0.00023008,2]
[309779116,1704114572335,-58.53650907,0.00023008,2]
[309779117,1704114575794,407.04975374,0.00022087,2]
[309779118,1704114575815,2772.99187888,0.00022087,2]
[309779120,1704114582205,150.0,0.00039159,30]
[309779121,1704114593803,3180.04163262,0.00022085,2]
[309779123,1704114613792,3180.04163262,0.00022085,2]
[309779124,1704114624212,210.92031935,0.00023,2]
[309779125,1704114624876,5706.23288983,0.00023,2]
[309779126,1704114626696,2770.37255743,0.00023,2]
[309779127,1704114627129,220.26666446,0.00023,2]
[309779128,1704114628895,576.50989765,0.00023,2]
[309779129,1704114629605,18948.26672582,0.00023,2]
[309779130,1704114631114,2466.96629898,0.00023,2]
[309779138,1704114631437,-664.07872208,0.00023001,2]
[309779139,1704114631496,-1465.91607592,0.00023001,2]
[309779140,1704114631506,-541.22410251,0.00023001,2]
[309779141,1704114631517,-937.43506641,0.00023001,2]
[309779142,1704114631527,-336.35995625,0.00023001,2]
[309779143,1704114631537,-234.78997094,0.00023001,2]
[309779144,1704114631547,-402.17174956,0.00023002,2]
[309779145,1704114631557,-278.31410173,0.00023002,2]
[309779146,1704114631567,-229.94338678,0.00023002,2]
[309779147,1704114631576,-3035.06116925,0.00023002,2]
[309779148,1704114631585,-4609.49037417,0.00023002,2]
[309779149,1704114631594,-16706.72309889,0.00023002,2]
[309779150,1704114631603,-10655.87494515,0.00023002,2]
[309779151,1704114631613,-513.70005074,0.00023003,2]
[309779152,1704114631622,-2605.2545687,0.00023003,2]
[309779153,1704114631632,-2610.96544886,0.00023003,2]
[309779154,1704114631641,-25125.68128321,0.00023003,2]
[309779155,1704114631651,-150.0,0.00023004,2]
[309779156,1704114631660,-155.0,0.00023004,2]
[309779157,1704114631673,-1057.98752379,0.00023004,2]
[309779158,1704114631682,-1847.42621652,0.00023004,2]
[309779159,1704114631692,-2937.00836296,0.00023004,2]
[309779160,1704114631702,-530.98245295,0.00023004,2]
[309779161,1704114631711,-155.0,0.00023004,2]
[309779162,1704114631721,-5000.0,0.00023005,2]
[309779163,1704114631731,-249.39139602,0.00023005,2]
[309779164,1704114631740,-269.83626346,0.00023005,2]
[309779165,1704114631750,-383.24855968,0.00023005,2]
[309779166,1704114631759,-301.20793522,0.00023005,2]
[309779167,1704114631769,-158.21861741,0.00023005,2]
[309779168,1704114631779,-459.45696518,0.00023005,2]
[309779169,1704114631788,-521.96752557,0.00023006,2]
[309779170,1704114631798,-2891.24890645,0.00023006,2]
[309779171,1704114631807,-403.22829154,0.00023006,2]
[309779172,1704114631816,-4471.5640939,0.00023006,2]
[309779173,1704114631826,-343.63321494,0.00023006,2]
[309779174,1704114631835,-309.02030832,0.00023007,2]
[309779175,1704114631845,-12354.13225412,0.00023007,2]
[309779176,1704114631855,-155.0,0.00023007,2]
[309779177,1704114631864,-362.82049166,0.00023007,2]
[309779178,1704114631874,-241.61161094,0.00023008,2]
[309779179,1704114631883,-6414.95009099,0.00023008,2]
[309779180,1704114631893,-2309.40085623,0.0002301,2]
[309779181,1704114631902,-346.48733334,0.0002301,2]
[309779182,1704114631912,-183.64713401,0.00023012,2]
[309779183,1704114631921,-540.46997169,0.00023012,2]
[309779185,1704114631931,-696.14483459,0.00023012,2]
[309779187,1704114631941,-2604.59273053,0.00023012,2]
[309779189,1704114631950,-309.94314207,0.00023012,2]
[309779191,1704114631959,-27142.98746034,0.00023013,2]
[309779193,1704114631969,-150.0,0.00023013,2]
[309779195,1704114631978,-150.0,0.00023013,2]
[309779197,1704114631987,-150.0,0.00023013,2]
[309779199,1704114631996,-150.0,0.00023013,2]
[309779201,1704114632005,-254.96629848,0.00023013,2]
[309779203,1704114632015,-482.92,0.00023015,2]
[309779205,1704114632024,-500.0,0.00023065,2]
[309779207,1704114632034,-499.99,0.00023082,2]
[309779209,1704114632043,-999.99,0.00023082,2]
[309779211,1704114632052,-150.99,0.00023082,2]
[309779213,1704114632061,-2402.96,0.00023189,2]
[309779215,1704114632071,-2533.14,0.00023221,2]
[309779217,1704114632080,-402.95,0.00023221,2]
[309779219,1704114632089,-317.52153148,0.0002336,2]
[309779221,1704114632099,-157.15093094,0.00023615,2]
[309779223,1704114632108,-2484.98,0.00023714,2]
[309779226,1704114632120,-1122.65843895,0.00023837,2]
[309779228,1704114632130,-1071.927,0.00023847,2]
[309779230,1704114632139,-492.66491416,0.00023853,2]
[309779232,1704114632148,-155.0,0.00023968,2]
[309779234,1704114632157,-558.43427985,0.00023972,2]
[309779236,1704114632166,-2931.92111189,0.00024092,2]
[309779238,1704114632175,-288.15054455,0.00024092,2]
[309779240,1704114632185,-527.27825206,0.00024094,2]
[309779242,1704114632194,-1762.02403637,0.00024096,2]
[309779244,1704114632204,-1510.75,0.00024556,2]
[309779246,1704114632213,-247.43612675,0.00024718,2]
[309779248,1704114632222,-413.0668259,0.00024901,2]
[309779250,1704114632232,-1071.42,0.00024916,2]
[309779252,1704114632240,-157.15093094,0.00024924,2]
[309779254,1704114632250,-748.78,0.00024959,2]
[309779256,1704114632259,-155.0,0.00024968,2]
[309779258,1704114632269,-155.20313738,0.00024968,2]
[309779260,1704114632278,-155.79839716,0.00024968,2]
[309779262,1704114632287,-866.54382482,0.00024968,2]
[309779264,1704114632296,-242.25597088,0.00024968,2]
[309779267,1704114632308,-157.27237618,0.00024968,2]
[309779269,1704114632318,-264.73235728,0.00024968,2]
[309779271,1704114632327,-248.12804319,0.00024968,2]
[309779273,1704114632337,-183.05433578,0.00024968,2]
[309779275,1704114632346,-155.0,0.00024968,2]
[309779277,1704114632356,-155.0,0.00024968,2]
[309779279,1704114632367,-217.17335148,0.00024968,2]
[309779281,1704114632377,-6560.9750454,0.00024983,2]
[309779283,1704114632395,-10911.6649546,0.00024983,2]
[309779285,1704114632405,-156.80094986,0.0002499,2]
[309779288,1704114632414,-329.54905684,0.00024994,2]
[309779290,1704114632424,-500.0,0.00024994,2]
[309779292,1704114632434,-155.36181432,0.00024997,2]
[309779294,1704114632444,-338.89645126,0.00025,2]
[309779296,1704114632454,-2681.26004549,0.00025,3]
[309779299,1704114632476,-464.0253,0.00025,3]
[309779301,1704114632488,-579.98137825,0.00025,3]
[309779303,1704114632501,-717.6887576,0.00025,3]
[309779306,1704114632513,-8838.439,0.00025,3]
[309779311,1704114632554,3180.04163262,0.0002208,2]
[309779321,1704114632639,1702.94991301,0.00023,2]
[309779382,1704114633271,291.04274478,0.00022085,2]
[309779409,1704114633525,5258.88141572,0.00023,2]
[309779809,1704114637509,-30201.20245658,0.00023001,2]
[309779810,1704114637524,-3436.95864983,0.00023001,2]
[309779811,1704114637534,-4918.50310117,0.00025,3]
[309779812,1704114637568,-37616.033428,0.00025,3]
[309779813,1704114637580,-764.65,0.00025,3]
[309779814,1704114637611,-285.7904402,0.00025,3]
[309779815,1704114637665,-443133.62854929,0.00025,3]
[309779816,1704114637674,-250.0,0.00025001,2]
[309779817,1704114637684,-2501.78,0.00025019,2]
[309779818,1704114637859,-482.92,0.00025279,2]
[309779819,1704114637869,-158.3,0.00025299,2]
[309779820,1704114637878,-210.0,0.00025313,2]
[309779821,1704114637889,-170.99,0.00025435,2]
[309779822,1704114637898,-747.27,0.00025518,2]
[309779823,1704114637907,-267.41,0.00025626,2]
[309779824,1704114637916,-267.41,0.00025696,2]
[309779825,1704114637926,-268.8,0.00025762,2]
[309779826,1704114637935,-267.41,0.00025766,2]
[309779827,1704114637944,-1510.75,0.00025784,2]
[309779828,1704114637953,-185.04,0.00025798,10]
[309779829,1704114637963,-267.41,0.00025836,2]
[309779830,1704114637972,-1071.42,0.00025894,2]
[309779831,1704114637982,-267.41,0.00025907,2]
[309779832,1704114637991,-267.41,0.00025977,2]
[309779833,1704114638000,-246201.17689776,0.00026,3]
[309779834,1704114638012,-109603.01960462,0.00026,3]
[309779835,1704114638027,-696.66443536,0.00026,3]
[309779837,1704114638038,-1969.855545,0.00026,3]
[309779839,1704114638050,-48058.27313747,0.00026,3]